[Event "GrandPrix_30.05"]
[Site "Chess.com"]
[Date "2020.05.30"]
[Round "3"]
[White "Nitzan_Steinberg"]
[Black "Arm-Akiba"]
[Result "1/2-1/2"]
[WhiteElo "2441"]
[BlackElo "2802"]
[TimeControl "600+2"]
[EndTime "9:26:00 PDT"]
[Termination "Game drawn - insufficient material"]

1. e4 {[%clk 0:10:01.9]} 1... e5 {[%clk 0:09:59.7]} 2. Nf3 {[%clk 0:10:02.8]}
2... Nc6 {[%clk 0:10:00.3]} 3. Bb5 {[%clk 0:10:03.2]} 3... a6 {[%clk 0:10:01]}
4. Ba4 {[%clk 0:10:03.7]} 4... Nf6 {[%clk 0:10:00.2]} 5. O-O {[%clk 0:10:04.1]}
5... Be7 {[%clk 0:10:00.6]} 6. Re1 {[%clk 0:10:04.5]} 6... b5 {[%clk 0:10:01.1]}
7. Bb3 {[%clk 0:10:05.6]} 7... O-O {[%clk 0:10:02]} 8. a4 {[%clk 0:10:05.2]}
8... b4 {[%clk 0:10:01.2]} 9. a5 {[%clk 0:10:06.2]} 9... d6 {[%clk 0:09:54.8]}
10. c3 {[%clk 0:10:03.4]} 10... Rb8 {[%clk 0:09:48.1]} 11. Bc4 {[%clk
0:09:57.2]} 11... bxc3 {[%clk 0:08:49.7]} 12. dxc3 {[%clk 0:09:57.9]} 12... Na7
{[%clk 0:08:47.9]} 13. h3 {[%clk 0:09:07.7]} 13... Nb5 {[%clk 0:08:47.5]} 14.
Nbd2 {[%clk 0:08:57.8]} 14... c6 {[%clk 0:08:38.5]} 15. Bd3 {[%clk 0:08:26.1]}
15... Qc7 {[%clk 0:08:34.2]} 16. Nf1 {[%clk 0:08:17.7]} 16... Be6 {[%clk
0:07:44.1]} 17. Ng3 {[%clk 0:08:11.4]} 17... Nd7 {[%clk 0:07:08.6]} 18. Bg5
{[%clk 0:07:33.2]} 18... Qd8 {[%clk 0:06:57.1]} 19. Qd2 {[%clk 0:07:25.7]} 19...
Nc5 {[%clk 0:06:25.7]} 20. Bc2 {[%clk 0:07:18]} 20... Nb3 {[%clk 0:06:26.6]} 21.
Bxb3 {[%clk 0:07:15.5]} 21... Bxb3 {[%clk 0:06:28.5]} 22. Bxe7 {[%clk
0:06:32.7]} 22... Qxe7 {[%clk 0:06:30.4]} 23. Qe3 {[%clk 0:06:31.7]} 23... Rfd8
{[%clk 0:06:17.4]} 24. Re2 {[%clk 0:06:29.5]} 24... Qf6 {[%clk 0:06:08.2]} 25.
Rd2 {[%clk 0:06:22.5]} 25... Re8 {[%clk 0:05:41.3]} 26. Re1 {[%clk 0:06:02.2]}
26... g6 {[%clk 0:05:27.4]} 27. Nh2 {[%clk 0:05:33]} 27... Qf4 {[%clk
0:05:12.5]} 28. Qd3 {[%clk 0:04:52.7]} 28... d5 {[%clk 0:05:06.3]} 29. Re3
{[%clk 0:04:53.3]} 29... Nd6 {[%clk 0:04:40.8]} 30. Ne2 {[%clk 0:04:07.6]} 30...
Qg5 {[%clk 0:04:25.7]} 31. Nf3 {[%clk 0:03:35.6]} 31... Qf6 {[%clk 0:04:22.6]}
32. Qxa6 {[%clk 0:03:01.5]} 32... Nc4 {[%clk 0:03:32.6]} 33. exd5 {[%clk
0:03:01.7]} 33... e4 {[%clk 0:02:47.7]} 34. Nfd4 {[%clk 0:02:16.1]} 34... Nxd2
{[%clk 0:02:46.5]} 35. dxc6 {[%clk 0:02:14.2]} 35... Qe5 {[%clk 0:02:13.2]} 36.
c7 {[%clk 0:01:37.9]} 36... Qxc7 {[%clk 0:02:09.3]} 37. Qf6 {[%clk 0:01:39]}
37... Qe5 {[%clk 0:02:01.6]} 38. Qxe5 {[%clk 0:01:39.7]} 38... Rxe5 {[%clk
0:02:01.4]} 39. Nc6 {[%clk 0:01:41.4]} 39... Ree8 {[%clk 0:01:54.2]} 40. Nxb8
{[%clk 0:01:42]} 40... Rxb8 {[%clk 0:01:55.7]} 41. Nd4 {[%clk 0:01:37.8]} 41...
Bd5 {[%clk 0:01:34.1]} 42. b4 {[%clk 0:01:37.9]} 42... f5 {[%clk 0:01:31.7]} 43.
Re2 {[%clk 0:01:37.9]} 43... Nb3 {[%clk 0:01:32]} 44. Nc2 {[%clk 0:01:18.7]}
44... f4 {[%clk 0:01:28.1]} 45. h4 {[%clk 0:01:10.3]} 45... Rc8 {[%clk 0:01:24]}
46. a6 {[%clk 0:00:47.6]} 46... Rxc3 {[%clk 0:01:17]} 47. b5 {[%clk 0:00:49]}
47... Rc5 {[%clk 0:00:52.8]} 48. Nb4 {[%clk 0:00:40.7]} 48... Rxb5 {[%clk
0:00:50.1]} 49. Nxd5 {[%clk 0:00:40.1]} 49... Rxd5 {[%clk 0:00:50.9]} 50. a7
{[%clk 0:00:28.7]} 50... Ra5 {[%clk 0:00:48.4]} 51. Rb2 {[%clk 0:00:26.8]} 51...
Rxa7 {[%clk 0:00:48.3]} 52. Rxb3 {[%clk 0:00:28]} 52... Ra1+ {[%clk 0:00:48.4]}
53. Kh2 {[%clk 0:00:28.7]} 53... Re1 {[%clk 0:00:46.8]} 54. h5 {[%clk
0:00:22.1]} 54... Kg7 {[%clk 0:00:41.5]} 55. hxg6 {[%clk 0:00:13]} 55... hxg6
{[%clk 0:00:42.6]} 56. Kh3 {[%clk 0:00:14.5]} 56... e3 {[%clk 0:00:38.9]} 57.
fxe3 {[%clk 0:00:13.6]} 57... fxe3 {[%clk 0:00:20.9]} 58. Kg3 {[%clk 0:00:14.6]}
58... Kh6 {[%clk 0:00:21.9]} 59. Kf3 {[%clk 0:00:14.6]} 59... Kg5 {[%clk
0:00:22.6]} 60. Rxe3 {[%clk 0:00:08.5]} 60... Rxe3+ {[%clk 0:00:23.5]} 61. Kxe3
{[%clk 0:00:10.4]} 61... Kg4 {[%clk 0:00:24.7]} 62. Kf2 {[%clk 0:00:11.4]} 62...
Kf4 {[%clk 0:00:26]} 63. Ke2 {[%clk 0:00:04.9]} 63... Kg3 {[%clk 0:00:26.9]} 64.
Kf1 {[%clk 0:00:06.2]} 64... g5 {[%clk 0:00:24.7]} 65. Kg1 {[%clk 0:00:07]}
65... g4 {[%clk 0:00:24]} 66. Kf1 {[%clk 0:00:07]} 66... Kh2 {[%clk 0:00:23.8]}
67. Kf2 {[%clk 0:00:05]} 67... Kh1 {[%clk 0:00:25.1]} 68. Kg3 {[%clk 0:00:04.4]}
68... Kg1 {[%clk 0:00:26.3]} 69. Kxg4 {[%clk 0:00:05.7]} 69... Kxg2 {[%clk
0:00:27.7]} 1/2-1/2

[Event "GrandPrix_30.05"]
[Site "Chess.com"]
[Date "2020.05.30"]
[Round "3"]
[White "Saqo007"]
[Black "KJakubowski"]
[Result "0-1"]
[WhiteElo "2139"]
[BlackElo "2393"]
[TimeControl "600+2"]
[EndTime "9:26:04 PDT"]
[Termination "KJakubowski won by resignation"]

1. d4 {[%clk 0:10:01.9]} 1... Nf6 {[%clk 0:09:59.8]} 2. c4 {[%clk 0:10:02.3]}
2... e6 {[%clk 0:10:00.3]} 3. Nc3 {[%clk 0:10:01]} 3... d5 {[%clk 0:09:57.9]} 4.
Bg5 {[%clk 0:09:58.4]} 4... Nbd7 {[%clk 0:09:57.6]} 5. e3 {[%clk 0:09:54.3]}
5... Be7 {[%clk 0:09:57.9]} 6. cxd5 {[%clk 0:09:54.8]} 6... exd5 {[%clk
0:09:57.9]} 7. Nf3 {[%clk 0:09:56.1]} 7... O-O {[%clk 0:09:58.2]} 8. Bd3 {[%clk
0:09:52.4]} 8... c6 {[%clk 0:09:58.7]} 9. O-O {[%clk 0:09:50.4]} 9... Re8 {[%clk
0:09:59.7]} 10. Qc2 {[%clk 0:09:49.8]} 10... Nf8 {[%clk 0:10:01]} 11. Bxf6
{[%clk 0:09:50.1]} 11... Bxf6 {[%clk 0:10:01.1]} 12. b4 {[%clk 0:09:51.4]} 12...
a6 {[%clk 0:09:50.8]} 13. a4 {[%clk 0:09:50.7]} 13... g6 {[%clk 0:09:42.9]} 14.
b5 {[%clk 0:09:48.9]} 14... a5 {[%clk 0:09:43.7]} 15. bxc6 {[%clk 0:09:46.4]}
15... bxc6 {[%clk 0:09:44.6]} 16. Rab1 {[%clk 0:09:46.7]} 16... Bg4 {[%clk
0:09:14.7]} 17. Nd2 {[%clk 0:09:45.7]} 17... Be7 {[%clk 0:09:13.1]} 18. Na2
{[%clk 0:09:40.3]} 18... Rc8 {[%clk 0:08:44.1]} 19. Ba6 {[%clk 0:09:09.6]} 19...
Rc7 {[%clk 0:08:41.5]} 20. Qc3 {[%clk 0:09:04.7]} 20... Bd6 {[%clk 0:08:19]} 21.
Rfc1 {[%clk 0:08:55]} 21... Ne6 {[%clk 0:08:18.5]} 22. e4 {[%clk 0:08:21.8]}
22... dxe4 {[%clk 0:08:03.1]} 23. Nxe4 {[%clk 0:08:20.7]} 23... Nxd4 {[%clk
0:07:51.9]} 24. Rb8 {[%clk 0:07:08.8]} 24... Qxb8 {[%clk 0:05:25.7]} 25. Nf6+
{[%clk 0:07:07]} 25... Kf8 {[%clk 0:05:24]} 26. Qxd4 {[%clk 0:07:02.9]} 26...
Bxh2+ {[%clk 0:05:06.3]} 27. Kh1 {[%clk 0:06:21.7]} 27... Be5 {[%clk 0:04:46.7]}
28. Qc5+ {[%clk 0:06:12.9]} 28... Kg7 {[%clk 0:03:30.6]} 29. Nxg4 {[%clk
0:05:36.5]} 29... Rce7 {[%clk 0:03:27.7]} 30. Qxc6 {[%clk 0:04:39.4]} 30... Bb2
{[%clk 0:03:06.5]} 31. Rf1 {[%clk 0:04:23.8]} 31... Re1 {[%clk 0:02:18.9]} 32.
g3 {[%clk 0:03:39.9]} 32... Qb3 {[%clk 0:02:07.5]} 33. Ne3 {[%clk 0:01:38.4]}
33... R8xe3 {[%clk 0:01:46.3]} 34. fxe3 {[%clk 0:01:36.9]} 34... Rxf1+ {[%clk
0:01:42.2]} 35. Bxf1 {[%clk 0:01:38.4]} 35... Qxa2 {[%clk 0:01:41.8]} 36. Bc4
{[%clk 0:01:28.3]} 36... Qb1+ {[%clk 0:01:35]} 37. Kg2 {[%clk 0:01:25.4]} 37...
Qc2+ {[%clk 0:01:33.7]} 38. Kh3 {[%clk 0:01:25.5]} 38... h5 {[%clk 0:00:35.6]}
39. Qd5 {[%clk 0:01:15.8]} 39... Qf2 {[%clk 0:00:35.6]} 40. Qe4 {[%clk
0:00:44.9]} 40... Qf6 {[%clk 0:00:23.3]} 41. Qf4 {[%clk 0:00:43.1]} 41... Qe7
{[%clk 0:00:22.9]} 42. g4 {[%clk 0:00:39.2]} 42... Be5 {[%clk 0:00:20.9]} 43.
Qe4 {[%clk 0:00:31.8]} 43... hxg4+ {[%clk 0:00:18.5]} 44. Qxg4 {[%clk
0:00:29.6]} 44... Bb8 {[%clk 0:00:18.2]} 45. Qd4+ {[%clk 0:00:28.4]} 45... Be5
{[%clk 0:00:18.1]} 46. Qd5 {[%clk 0:00:23.1]} 46... Qf6 {[%clk 0:00:16.6]} 47.
Kg2 {[%clk 0:00:20]} 47... Qf5 {[%clk 0:00:16.3]} 48. Qf3 {[%clk 0:00:18.1]}
48... Qc2+ {[%clk 0:00:16.5]} 49. Be2 {[%clk 0:00:14.6]} 49... Qxa4 {[%clk
0:00:16.8]} 50. Qd5 {[%clk 0:00:16.1]} 50... Bf6 {[%clk 0:00:10.1]} 51. Bc4
{[%clk 0:00:16.5]} 51... Qe8 {[%clk 0:00:10.4]} 52. Qxa5 {[%clk 0:00:13.2]}
52... Qe4+ {[%clk 0:00:10.3]} 53. Kf2 {[%clk 0:00:12.6]} 53... Qxc4 {[%clk
0:00:11.8]} 54. Qa8 {[%clk 0:00:11.9]} 54... Qh4+ {[%clk 0:00:12.3]} 55. Ke2
{[%clk 0:00:13]} 55... Qg4+ {[%clk 0:00:13.4]} 56. Kd3 {[%clk 0:00:14.5]} 56...
Qf5+ {[%clk 0:00:14]} 57. Ke2 {[%clk 0:00:16]} 57... g5 {[%clk 0:00:13.6]} 58.
e4 {[%clk 0:00:16.3]} 58... Qf4 {[%clk 0:00:14.2]} 59. Qd5 {[%clk 0:00:17.3]}
59... g4 {[%clk 0:00:14.2]} 60. Qd3 {[%clk 0:00:16.2]} 60... Be5 {[%clk
0:00:14.8]} 61. Qd7 {[%clk 0:00:08.6]} 61... Qxe4+ {[%clk 0:00:14.6]} 62. Kf2
{[%clk 0:00:10.2]} 62... Qf3+ {[%clk 0:00:15.3]} 63. Kg1 {[%clk 0:00:10.2]}
63... Bf6 {[%clk 0:00:14.2]} 64. Qc7 {[%clk 0:00:07.2]} 64... Qe3+ {[%clk
0:00:14.3]} 65. Kh1 {[%clk 0:00:07.8]} 65... Be5 {[%clk 0:00:13.7]} 66. Qc2
{[%clk 0:00:07.2]} 66... Qf3+ {[%clk 0:00:12.7]} 67. Kg1 {[%clk 0:00:07.9]}
67... Qg3+ {[%clk 0:00:13.6]} 68. Kh1 {[%clk 0:00:09]} 68... Qh3+ {[%clk
0:00:14.6]} 69. Kg1 {[%clk 0:00:10.1]} 69... Bd4+ {[%clk 0:00:16]} 0-1

[Event "GrandPrix_30.05"]
[Site "Chess.com"]
[Date "2020.05.30"]
[Round "3"]
[White "Anton_Demchenko"]
[Black "Mesropov_Konstantin"]
[Result "1-0"]
[WhiteElo "2636"]
[BlackElo "2321"]
[TimeControl "600+2"]
[EndTime "9:26:08 PDT"]
[Termination "Anton_Demchenko won by resignation"]

1. d4 {[%clk 0:10:01.9]} 1... d5 {[%clk 0:09:58.3]} 2. Nf3 {[%clk 0:10:02.8]}
2... e6 {[%clk 0:09:59.1]} 3. Bf4 {[%clk 0:10:03.4]} 3... c6 {[%clk 0:09:59]} 4.
e3 {[%clk 0:10:03.6]} 4... f5 {[%clk 0:09:51.9]} 5. c4 {[%clk 0:10:01.5]} 5...
Nf6 {[%clk 0:09:53]} 6. Nc3 {[%clk 0:10:01.5]} 6... Bd6 {[%clk 0:09:53.9]} 7.
Bxd6 {[%clk 0:09:27.9]} 7... Qxd6 {[%clk 0:09:54]} 8. Bd3 {[%clk 0:09:29.8]}
8... O-O {[%clk 0:09:53.2]} 9. O-O {[%clk 0:09:29]} 9... Ne4 {[%clk 0:09:52.6]}
10. Ne2 {[%clk 0:09:12.2]} 10... Nd7 {[%clk 0:09:51]} 11. Rc1 {[%clk 0:08:50.9]}
11... Qe7 {[%clk 0:09:46.3]} 12. a3 {[%clk 0:08:16]} 12... Ndf6 {[%clk
0:09:30.4]} 13. Ne5 {[%clk 0:07:47.3]} 13... Bd7 {[%clk 0:09:30.4]} 14. b4
{[%clk 0:06:55.3]} 14... a6 {[%clk 0:09:23]} 15. f3 {[%clk 0:06:38.1]} 15... Nd6
{[%clk 0:09:21.5]} 16. c5 {[%clk 0:06:21.8]} 16... Nf7 {[%clk 0:09:15.2]} 17. a4
{[%clk 0:06:20.2]} 17... Be8 {[%clk 0:08:58.8]} 18. Qb3 {[%clk 0:06:19.4]} 18...
Nd7 {[%clk 0:08:29.1]} 19. Nxd7 {[%clk 0:06:17.1]} 19... Bxd7 {[%clk 0:08:28.1]}
20. f4 {[%clk 0:06:18.2]} 20... Nh6 {[%clk 0:08:12.6]} 21. h3 {[%clk 0:06:17.4]}
21... Kh8 {[%clk 0:08:00.2]} 22. b5 {[%clk 0:05:41.9]} 22... axb5 {[%clk
0:07:58.6]} 23. axb5 {[%clk 0:05:42.8]} 23... Ng8 {[%clk 0:07:42.9]} 24. Ra1
{[%clk 0:05:41.4]} 24... Nf6 {[%clk 0:07:37.9]} 25. b6 {[%clk 0:05:42.1]} 25...
Rab8 {[%clk 0:07:30.7]} 26. Kh2 {[%clk 0:05:19.8]} 26... Be8 {[%clk 0:07:29.6]}
27. Ng1 {[%clk 0:03:56.2]} 27... Bh5 {[%clk 0:06:28.5]} 28. Qb2 {[%clk
0:03:46.1]} 28... h6 {[%clk 0:06:09.5]} 29. Be2 {[%clk 0:02:50.3]} 29... Bxe2
{[%clk 0:06:04]} 30. Qxe2 {[%clk 0:02:52.2]} 30... g5 {[%clk 0:05:46.1]} 31. Nf3
{[%clk 0:02:24.6]} 31... Rg8 {[%clk 0:05:30.7]} 32. Ne5 {[%clk 0:01:36]} 32...
g4 {[%clk 0:05:29.7]} 33. Ra7 {[%clk 0:01:32]} 33... Nd7 {[%clk 0:05:04.5]} 34.
g3 {[%clk 0:01:09.6]} 34... Nxe5 {[%clk 0:05:01.8]} 35. fxe5 {[%clk 0:01:10.6]}
35... gxh3 {[%clk 0:04:51.9]} 36. Qh5 {[%clk 0:01:11.2]} 36... Kh7 {[%clk
0:04:40.7]} 37. Rf4 {[%clk 0:00:58.4]} 37... Rg6 {[%clk 0:03:53.6]} 38. Qxh3
{[%clk 0:00:59.1]} 38... Rbg8 {[%clk 0:03:51]} 39. Rf3 {[%clk 0:00:55.4]} 39...
Rg5 {[%clk 0:03:33.7]} 40. Kg2 {[%clk 0:00:52.5]} 40... R8g7 {[%clk 0:03:08.2]}
41. Kf2 {[%clk 0:00:53]} 41... Qe8 {[%clk 0:02:52.1]} 42. Ke2 {[%clk 0:00:33.1]}
42... Rh5 {[%clk 0:02:41.4]} 43. Qg2 {[%clk 0:00:31.8]} 43... Qg6 {[%clk
0:02:37]} 44. Kd2 {[%clk 0:00:25.9]} 44... Rg5 {[%clk 0:02:25.8]} 45. Kc3 {[%clk
0:00:22.4]} 45... Rg4 {[%clk 0:02:24.5]} 46. Qh3 {[%clk 0:00:17.4]} 46... Qg5
{[%clk 0:02:22]} 47. Kb2 {[%clk 0:00:13.5]} 47... Re4 {[%clk 0:02:12.3]} 48. Ra3
{[%clk 0:00:13.5]} 48... Rg4 {[%clk 0:01:59.4]} 49. Ra7 {[%clk 0:00:14.1]} 49...
Qg6 {[%clk 0:01:56.1]} 50. Kc3 {[%clk 0:00:13.4]} 50... f4 {[%clk 0:01:23.1]}
51. gxf4 {[%clk 0:00:14.8]} 51... Qb1 {[%clk 0:01:08.3]} 52. Qf1 {[%clk
0:00:15]} 52... Qe4 {[%clk 0:00:50.6]} 53. Qd3 {[%clk 0:00:15.7]} 53... h5
{[%clk 0:00:50.2]} 54. Rh3 {[%clk 0:00:14.4]} 54... h4 {[%clk 0:00:48.4]} 55.
Qxe4+ {[%clk 0:00:11]} 55... dxe4 {[%clk 0:00:49.4]} 56. f5 {[%clk 0:00:09.6]}
56... exf5 {[%clk 0:00:45.6]} 57. d5 {[%clk 0:00:11.1]} 57... cxd5 {[%clk
0:00:15.6]} 58. c6 {[%clk 0:00:11.8]} 58... Rg1 {[%clk 0:00:11.6]} 59. c7 {[%clk
0:00:12]} 59... Rc1+ {[%clk 0:00:11.4]} 60. Kb2 {[%clk 0:00:12.2]} 60... Rc6
{[%clk 0:00:11.6]} 61. Rxb7 {[%clk 0:00:12.7]} 61... Kg6 {[%clk 0:00:11.3]} 62.
Rxh4 {[%clk 0:00:12.4]} 62... Kg5 {[%clk 0:00:12.5]} 63. Rh8 {[%clk 0:00:11.3]}
63... Re7 {[%clk 0:00:09.2]} 64. Rg8+ {[%clk 0:00:10.9]} 64... Kh4 {[%clk
0:00:09.6]} 65. Rg6 {[%clk 0:00:10.7]} 65... Rc4 {[%clk 0:00:07.7]} 66. c8=Q
{[%clk 0:00:07.2]} 66... Rxc8 {[%clk 0:00:04.6]} 67. Rxe7 {[%clk 0:00:08.5]} 1-0

[Event "GrandPrix_30.05"]
[Site "Chess.com"]
[Date "2020.05.30"]
[Round "3"]
[White "Lavrov_Maxim"]
[Black "Baron_von_Koenig"]
[Result "1/2-1/2"]
[WhiteElo "2285"]
[BlackElo "2141"]
[TimeControl "600+2"]
[EndTime "9:26:10 PDT"]
[Termination "Game drawn by stalemate"]

1. e4 {[%clk 0:10:01.9]} 1... d5 {[%clk 0:10:00.5]} 2. exd5 {[%clk 0:10:02.2]}
2... Qxd5 {[%clk 0:10:01.3]} 3. Nc3 {[%clk 0:10:02]} 3... Qd6 {[%clk 0:10:02.3]}
4. Nf3 {[%clk 0:10:01.3]} 4... Nf6 {[%clk 0:10:03]} 5. d4 {[%clk 0:10:02.3]}
5... a6 {[%clk 0:10:03.7]} 6. Ne5 {[%clk 0:09:51.1]} 6... Nc6 {[%clk 0:10:03.3]}
7. Bf4 {[%clk 0:09:06.4]} 7... Nxd4 {[%clk 0:10:00.4]} 8. Bc4 {[%clk 0:08:40.1]}
8... Be6 {[%clk 0:09:59.8]} 9. Qd3 {[%clk 0:06:19.5]} 9... Bxc4 {[%clk
0:09:37.6]} 10. Qxc4 {[%clk 0:06:05.4]} 10... Nxc2+ {[%clk 0:08:37.7]} 11. Ke2
{[%clk 0:05:30.7]} 11... Nd4+ {[%clk 0:08:25]} 12. Kf1 {[%clk 0:05:27.6]} 12...
Ne6 {[%clk 0:04:46]} 13. Rd1 {[%clk 0:04:08.8]} 13... Qc5 {[%clk 0:04:36.2]} 14.
Qb3 {[%clk 0:03:42.9]} 14... Qb6 {[%clk 0:03:42.2]} 15. Qa4+ {[%clk 0:02:59.2]}
15... c6 {[%clk 0:03:33.5]} 16. Nc4 {[%clk 0:02:29.2]} 16... Qc5 {[%clk
0:03:00.9]} 17. Be3 {[%clk 0:02:19.1]} 17... b5 {[%clk 0:02:33.3]} 18. Bxc5
{[%clk 0:01:59.4]} 18... bxa4 {[%clk 0:02:34.2]} 19. Be3 {[%clk 0:02:00.4]}
19... Rb8 {[%clk 0:01:48.9]} 20. Nxa4 {[%clk 0:01:41.6]} 20... Nd5 {[%clk
0:01:49.3]} 21. b3 {[%clk 0:01:04.1]} 21... g6 {[%clk 0:01:36.1]} 22. Ne5 {[%clk
0:01:03.8]} 22... Nxe3+ {[%clk 0:01:28]} 23. fxe3 {[%clk 0:01:04]} 23... Bh6
{[%clk 0:01:25.6]} 24. Ke2 {[%clk 0:00:51.1]} 24... c5 {[%clk 0:01:17.8]} 25.
Rd5 {[%clk 0:00:45]} 25... O-O {[%clk 0:01:13.6]} 26. Nxc5 {[%clk 0:00:37]}
26... Rb5 {[%clk 0:01:07.4]} 27. Ned3 {[%clk 0:00:18.5]} 27... Rc8 {[%clk
0:01:01.5]} 28. Rc1 {[%clk 0:00:18.3]} 28... Nxc5 {[%clk 0:00:38.5]} 29. Rdxc5
{[%clk 0:00:15.3]} 29... Ra8 {[%clk 0:00:34.3]} 30. Rc8+ {[%clk 0:00:15.1]}
30... Rxc8 {[%clk 0:00:34.5]} 31. Rxc8+ {[%clk 0:00:16.7]} 31... Kg7 {[%clk
0:00:35.7]} 32. Rc6 {[%clk 0:00:16.6]} 32... a5 {[%clk 0:00:36.6]} 33. Rc5
{[%clk 0:00:16.5]} 33... Rxc5 {[%clk 0:00:35.1]} 34. Nxc5 {[%clk 0:00:17]} 34...
f5 {[%clk 0:00:34.5]} 35. Nb7 {[%clk 0:00:17.2]} 35... f4 {[%clk 0:00:36]} 36.
Nxa5 {[%clk 0:00:15.9]} 36... fxe3 {[%clk 0:00:36.4]} 37. Nc6 {[%clk 0:00:16.9]}
37... Kf6 {[%clk 0:00:37.1]} 38. a4 {[%clk 0:00:17.9]} 38... Ke6 {[%clk
0:00:38.4]} 39. a5 {[%clk 0:00:18.4]} 39... Kd6 {[%clk 0:00:39.1]} 40. Nd4
{[%clk 0:00:16.8]} 40... Kc5 {[%clk 0:00:40.4]} 41. a6 {[%clk 0:00:09.3]} 41...
Kb6 {[%clk 0:00:41.3]} 42. Nc6 {[%clk 0:00:09.8]} 42... Kxa6 {[%clk 0:00:38]}
43. Nxe7 {[%clk 0:00:10.9]} 43... Bf4 {[%clk 0:00:36.3]} 44. g3 {[%clk 0:00:10]}
44... Bg5 {[%clk 0:00:36.5]} 45. Nd5 {[%clk 0:00:11]} 45... Ka5 {[%clk
0:00:37.2]} 46. Nxe3 {[%clk 0:00:11.5]} 46... Kb4 {[%clk 0:00:38.5]} 47. Nd5+
{[%clk 0:00:11.1]} 47... Kxb3 {[%clk 0:00:39.7]} 48. Kd3 {[%clk 0:00:12.3]}
48... Ka4 {[%clk 0:00:40.4]} 49. Ke4 {[%clk 0:00:12.5]} 49... Kb5 {[%clk
0:00:41.4]} 50. Ke5 {[%clk 0:00:12.7]} 50... Kc4 {[%clk 0:00:42.6]} 51. Ke4
{[%clk 0:00:13]} 51... Kb3 {[%clk 0:00:43]} 52. Nc7 {[%clk 0:00:12.3]} 52... Kc2
{[%clk 0:00:42.9]} 53. Ne6 {[%clk 0:00:13.3]} 53... Be7 {[%clk 0:00:42.6]} 54.
g4 {[%clk 0:00:10.2]} 54... Kd2 {[%clk 0:00:43.4]} 55. Kf3 {[%clk 0:00:10.8]}
55... Ke1 {[%clk 0:00:44.4]} 56. h3 {[%clk 0:00:10.8]} 56... Kf1 {[%clk
0:00:45.5]} 57. Nf4 {[%clk 0:00:11]} 57... Kg1 {[%clk 0:00:45.8]} 58. Nd5 {[%clk
0:00:11.7]} 58... Bd8 {[%clk 0:00:46.3]} 59. Kg3 {[%clk 0:00:12.8]} 59... Kh1
{[%clk 0:00:46.2]} 60. h4 {[%clk 0:00:13.3]} 60... Kg1 {[%clk 0:00:47.1]} 61. g5
{[%clk 0:00:14.1]} 61... Kf1 {[%clk 0:00:47.2]} 62. Nf6 {[%clk 0:00:14.9]} 62...
h6 {[%clk 0:00:45.8]} 63. Kg4 {[%clk 0:00:14.6]} 63... hxg5 {[%clk 0:00:46.1]}
64. Kxg5 {[%clk 0:00:15.6]} 64... Kg2 {[%clk 0:00:42.4]} 65. Kxg6 {[%clk
0:00:16.6]} 65... Ba5 {[%clk 0:00:43.5]} 66. h5 {[%clk 0:00:15]} 66... Bd2
{[%clk 0:00:44.4]} 67. Ne4 {[%clk 0:00:16.2]} 67... Be3 {[%clk 0:00:45.5]} 68.
Ng5 {[%clk 0:00:17.1]} 68... Kg3 {[%clk 0:00:45.3]} 69. h6 {[%clk 0:00:17.4]}
69... Bd4 {[%clk 0:00:46.8]} 70. Ne6 {[%clk 0:00:16.2]} 70... Bh8 {[%clk
0:00:46.2]} 71. h7 {[%clk 0:00:16.2]} 71... Kh4 {[%clk 0:00:46.5]} 72. Kf7
{[%clk 0:00:16]} 72... Kh5 {[%clk 0:00:47.6]} 73. Kg8 {[%clk 0:00:17.1]} 73...
Kg6 {[%clk 0:00:48.3]} 74. Kxh8 {[%clk 0:00:16.9]} 74... Kf7 {[%clk 0:00:49.7]}
75. Ng5+ {[%clk 0:00:17.3]} 75... Kf8 {[%clk 0:00:50.8]} 76. Ne4 {[%clk
0:00:18.3]} 76... Kf7 {[%clk 0:00:51.9]} 77. Nf6 {[%clk 0:00:18.5]} 77... Kf8
{[%clk 0:00:53]} 78. Ng8 {[%clk 0:00:19.3]} 78... Kf7 {[%clk 0:00:54.1]} 79.
Nh6+ {[%clk 0:00:20]} 79... Kf8 {[%clk 0:00:55.3]} 80. Ng4 {[%clk 0:00:20.7]}
80... Kf7 {[%clk 0:00:56.6]} 81. Nf2 {[%clk 0:00:21.6]} 81... Kf8 {[%clk
0:00:57.8]} 82. Ne4 {[%clk 0:00:22.6]} 82... Kf7 {[%clk 0:00:59.2]} 83. Ng5+
{[%clk 0:00:23.7]} 83... Kf8 {[%clk 0:01:00.4]} 84. Ne6+ {[%clk 0:00:24.5]}
84... Kf7 {[%clk 0:01:01.6]} 85. Nf8 {[%clk 0:00:25.4]} 85... Kxf8 {[%clk
0:01:02.2]} 1/2-1/2